[Event "12th Senioren-Cup Tegernsee 2024"]
[Site "Rottach-Egern"]
[Date "2024.04.11"]
[Round "6.5"]
[White "Lindam, Ingo"]
[Black "Pollmann, Sascha"]
[Result "1/2-1/2"]
[ECO "A83"]
[WhiteElo "2160"]
[BlackElo "2061"]
[Annotator "TA"]
[PlyCount "75"]
[EventDate "2024.04.02"]
[EventType "swiss"]
[EventCountry "GER"]
[SourceTitle "playchess.com"]
[Source "ChessBase"]
[SourceQuality "1"]
[TimeControl "7800+30"]

{[%evp 10,75,-8,-7,-12,-12,0,0,0,-10,-14,-7,0,0,0,-44,0,-161,-160,-182,-155,-162,-171,-214,-234,-214,-209,-337,-348,-352,-344,-333,-135,-132,-115,-137,0,-236,-235,-231,0,0,0,0,0,-147,-35,-164,-176,-239,-55,-127,-123,-257,0,0,17,0,0,0,0,0,378,379,380,331,370,143]} 1. d4 {[%emt 0:00:03]} f5 {[%emt 0:00:18]} 2. e4 {[%emt 0:00:37]} fxe4 {[%emt 0:00:16]} 3. Nc3 {[%emt 0:00:02]} Nf6 {[%emt 0:00:12]} 4. Bg5 {[%emt 0:00:10]} g6 {[%emt 0:00:19]} 5. h4 {[%emt 0:01:26]} d5 {[%emt 0:00:24]} 6. h5 {[%emt 0:05:58]} Bf5 {[%emt 0:00:21] A83: Dutch Defence: Staunton Gambit with 3 Nc3 Nf6 4 Bg5.} 7. Bxf6 {[%emt 0:06:31]} exf6 {[%emt 0:00:18]} 8. g4 {[%emt 0:01:08]} Be6 {[%emt 0:00:19]} 9. hxg6 {[%emt 0:04:45]} Qd7 {[%emt 0:00:32]} 10. g5 {[%emt 0:02:55]} fxg5 {[%emt 0:01:06]} 11. Qh5 {[%emt 0:21:32]} Qg7 {[%emt 0:02:32]} 12. O-O-O {[%emt 0:19:57]} (12. gxh7+ Bf7 13. Qg4 Nd7 $17 (13... Rxh7 $2 14. Qc8+ Ke7 15. Rxh7 $18)) 12... Nc6 {[%emt 0:11:46]} 13. Bb5 $2 {[%emt 0:06:04]} (13. Qxg5 Ne7 (13... Qxg6 14. Qxg6+ hxg6 15. Rxh8 $18) 14. Qh5 O-O-O $17 (14... Qxg6 15. Qe5 $11) (14... Nxg6 15. Nxd5 O-O-O 16. Bh3 $11)) (13. gxh7+ $11 {and White is okay.} Bf7 14. Qg4) 13... O-O-O $146 {[%emt 0:01:42]} ({Predecessor:} 13... h6 14. f4 O-O-O 15. Bxc6 bxc6 16. Nge2 Be7 17. Kb1 Bf5 18. Ng3 Qxg6 19. Nxf5 Qxf5 20. fxg5 hxg5 {0-1 Ruuskanen,T-Hoerhammer,A FIN-ch I2 qual corr 1980}) 14. Bxc6 {[%emt 0:01:27]} bxc6 {[%emt 0:00:10]} 15. gxh7 {[%emt 0:06:14]} Bd6 {[%emt 0:01:52]} 16. Qe2 {[%emt 0:06:27]} Rxh7 {[%emt 0:03:25]} 17. Rxh7 {[%emt 0:00:30]} Qxh7 {[%emt 0:00:30]} 18. Qa6+ {[%emt 0:00:16]} (18. f3 $142) 18... Kd7 $19 {[%emt 0:02:47]} 19. f3 {[%emt 0:11:43]} exf3 {[%emt 0:03:56]} 20. Nxf3 {[%emt 0:00:21]} Rf8 {[%emt 0:01:12]} (20... Bg4 $19 {is more deadly.} 21. Rf1 Bxf3 22. Rxf3 g4) 21. Ne5+ $17 {[%emt 0:01:23]} Bxe5 {[%emt 0:00:25]} 22. dxe5 {[%emt 0:00:01]} Rf2 {[%emt 0:00:36]} (22... Qh3 $17 {Threatens to win with ...Qe3+.} 23. Kb1 Qe3) 23. Qa4 $2 {[%emt 0:02:34]} (23. Ne2 $11 c5 24. Qb5+ Kd8 25. Qb8+ Kd7 26. Qb5+ Kd8 27. Qb8+ Kd7 28. Qb5+) 23... Ke7 $19 {[%emt 0:10:16]} 24. Nb1 {[%emt 0:04:29]} Rh2 $2 {[%emt 0:09:01]} (24... Qh2 $1 $19 25. Qxc6 Bg4 (25... Qxe5 $2 26. Qc5+ Kd7 27. Qxf2 $18) 26. Qxc7+ Kf8 27. Qd8+ (27. Rxd5 $2 Qh1+) 27... Kg7 (27... Kf7 28. e6+ Bxe6 29. Nd2 $17) 28. Qxg5+ (28. Rxd5 $2 Rxc2#) 28... Kh7) 25. Qxc6 $11 {[%emt 0:01:18]} Kd8 {[%emt 0:16:00][%cal Og5g4]} 26. Na3 {[%emt 0:07:47]} (26. Qxe6 $2 Rxc2#) 26... Qf5 {[%emt 0:11:37]} 27. Qc3 {[%emt 0:14:56]} (27. Nb5 $11 {keeps the balance.} Qxe5 28. a3) 27... Rh3 {[%emt 0:12:36]} (27... a6 $17 28. Qg3 Rh3) 28. Qe1 {[%emt 0:08:57]} ({White should try} 28. Qc6 $15) 28... Qf4+ $19 {[%emt 0:05:48]} 29. Kb1 {[%emt 0:00:04]} (29. Qd2 $142) 29... Qe3 $2 {[%emt 0:00:20]} ({Better is} 29... a6 $1 $19 {Hoping for ...g4.} 30. Ka1 g4) 30. Qf1 {[%emt 0:01:15] Prevents g4.} (30. Qa5 g4 31. b3 Rh2 (31... Qxe5 32. Nb5 $11) 32. Rxd5+ Bxd5 33. Qxd5+ Ke7 $19) (30. Nb5 $1 $15) 30... Qf3 $1 $17 {[%emt 0:01:16]} (30... Qxe5 31. Nc4 (31. Qf8+ Kd7 $17) 31... Qf4 32. Qe1) 31. Qe1 {[%emt 0:01:13] [#]} (31. Qg1 $17 {is a better defense.}) 31... Bg4 $2 {[%emt 0:05:01]} (31... a6 $1 $19 {aiming for ...g4.} 32. Ka1 g4) 32. Rc1 $1 $11 {[%emt 0:00:44]} Rh2 {[%emt 0:08:17]} 33. Qg1 {[%emt 0:00:59]} Rf2 {[%emt 0:01:53]} 34. Nb5 $1 {[%emt 0:00:51][%cal Oa2a3]} Qg2 {[%emt 0:02:51]} 35. Qe1 {[%emt 0:00:28][%cal Oe5e6]} Bh3 $2 {[%emt 0:04:14][%mdl 8192]} (35... a6 $11 {and Black stays safe.} 36. Nd4 Rf4 37. Nc6+ Kd7 38. Nb8+ Kc8 39. Nxa6 Qf2) 36. Qc3 $18 {[%emt 0:01:19]} (36. Nxa7 Rf1 37. Qe3 Rxc1+ 38. Kxc1 Bd7 $15) (36. Qa5 $2 Rxc2 37. Qb4 (37. Rxc2 Qh1+) 37... Rxc1+ 38. Kxc1 Qg1+ 39. Kc2 Qf2+ 40. Kc1 Qe3+ 41. Kd1 Kc8 $19 (41... Qxe5 42. Nxa7 Kd7 43. Qa4+ Ke6 44. Qe8+ Kf5 45. Qd7+ Qe6 46. Qh7+ Kg4 47. b3 $17)) 36... Rf7 {[%emt 0:01:00]} 37. Qc6 {[%emt 0:01:13][%cal Oe5e6] And now e6! would win.} (37. Nxa7 Bd7 $11) 37... d4 {[%emt 0:07:35] [#]} 38. Qc5 $2 {[%emt 0:00:34]} ({Inferior is} 38. Nxd4 Qxc6 39. Nxc6+ Ke8 $15) (38. Qc4 $1 $18 {[%cal Rc4f7] is the precise move to win.} Rf1 39. Qxc7+ (39. Nxc7 {gets mated.} Rxc1+ 40. Kxc1 Qg1+) 39... Ke8 40. Nd6+ (40. Qxa7 Rxc1+ 41. Kxc1 Qg1+ 42. Kd2 Qe3+ 43. Kd1 Bg4#) 40... Kf8 41. Qb8+ (41. Qxa7 Rxc1+ 42. Kxc1 Qg1+ 43. Kd2 Qe3+ 44. Kd1 Bg4#) 41... Kg7 42. Qxa7+ Kh6 43. Qxd4) 1/2-1/2

[Event "12th Senioren-Cup Tegernsee 2024"]
[Site "Rottach-Egern"]
[Date "2024.04.11"]
[Round "6.6"]
[White "Jahn, Peter"]
[Black "Cordts, Ingo"]
[Result "1/2-1/2"]
[ECO "D02"]
[WhiteElo "2068"]
[BlackElo "2225"]
[Annotator "TA"]
[PlyCount "67"]
[EventDate "2024.04.02"]
[EventType "swiss"]
[EventCountry "GER"]
[SourceTitle "playchess.com"]
[Source "ChessBase"]
[SourceQuality "1"]
[TimeControl "7800+30"]

{[%evp 13,67,14,15,0,0,0,10,0,20,4,39,12,35,52,50,40,122,124,262,272,262,268,262,272,262,262,268,109,105,84,78,79,81,78,122,88,150,143,165,69,70,69,150,36,36,40,45,33,33,21,23,13,13,13,13,0]} 1. d4 {[%emt 0:00:17]} Nf6 {[%emt 0:00:18]} 2. Nf3 {[%emt 0:00:15]} d5 {[%emt 0:00:10]} 3. g3 {[%emt 0:00:14]} c5 {[%emt 0:03:34]} 4. Bg2 {[%emt 0:00:20]} cxd4 {[%emt 0:00:09]} 5. O-O {[%emt 0:00:21]} Bd7 {[%emt 0:00:19]} 6. Nxd4 {[%emt 0:00:35]} e5 {[%emt 0:00:33]} 7. Nb3 {[%emt 0:04:13]} Be6 {[%emt 0:06:04]} 8. c4 {[%emt 0:00:51] Bg5 is the strong threat.} Nc6 {[%emt 0:01:33]} 9. cxd5 {[%emt 0:06:53]} Nxd5 {[%emt 0:01:04]} 10. N1d2 {[%emt 0:04:05]} f6 {[%emt 0:14:56]} 11. Ne4 {[%emt 0:02:34]} b6 {[%emt 0:06:12] Prevents Nec5} 12. Nc3 {[%emt 0:12:05]} Ncb4 {[%emt 0:17:14]} 13. a3 {[%emt 0:12:56]} Nxc3 {[%emt 0:00:36]} 14. bxc3 {[%emt 0:00:26]} Qxd1 {[%emt 0:02:41]} (14... Na6 $14 15. Bxa8 Qxa8) 15. Rxd1 $16 {[%emt 0:01:25]} Bxb3 {[%emt 0:01:54]} (15... Rc8 $16 16. axb4 Bxb3) 16. Bxa8 $18 {[%emt 0:00:27][%cal Oa3b4]} Bxd1 {[%emt 0:03:36]} 17. axb4 {[%emt 0:02:20]} a5 {[%emt 0:05:51]} 18. Bc6+ {[%emt 0:02:08]} Kf7 {[%emt 0:01:18]} 19. bxa5 {[%emt 0:00:37]} bxa5 {[%emt 0:00:34]} 20. Kf1 {[%emt 0:02:45]} (20. Rxa5 $18 {is more deadly. aiming for Bd5+.} Bxe2 21. Bd5+ Kg6 22. Ra8) 20... a4 $16 {[%emt 0:02:50]} 21. Bxa4 {[%emt 0:00:49] White is more active.} Bxa4 {[%emt 0:00:09]} 22. Rxa4 {[%emt 0:00:07][%mdl 4096] Endgame. KRB-KRB} Be7 {[%emt 0:00:45]} 23. e4 {[%emt 0:06:42]} h5 {[%emt 0:01:21]} 24. Be3 {[%emt 0:02:45]} h4 {[%emt 0:00:41]} (24... Rc8 $142) 25. Ke2 {[%emt 0:03:44]} Rb8 {[%emt 0:01:18]} 26. Kf3 {[%emt 0:00:53]} (26. c4 $18) 26... Rb3 {[%emt 0:02:44]} 27. Rc4 {[%emt 0:00:28]} Ke6 {[%emt 0:04:09]} (27... hxg3 $14 28. hxg3 Rb2) 28. Kg4 {[%emt 0:10:52]} (28. gxh4 $16 {h5 would now be deadly.} g6 29. Rc8) 28... hxg3 $14 {[%emt 0:01:18]} 29. hxg3 {[%emt 0:00:14]} g6 {[%emt 0:02:41]} 30. Kf3 {[%emt 0:00:14]} Kd7 {[%emt 0:11:09]} 31. Ke2 {[%emt 0:01:08]} Rb2+ {[%emt 0:00:45]} 32. Kd3 {[%emt 0:00:30]} Ra2 {[%emt 0:00:16] Dodges Ra4} 33. Bb6 {[%emt 0:04:16]} Bd6 {[%emt 0:01:10] Inhibits Rc7+.} 34. Be3 {[%emt 0:06:01] Black defended with fortune.   Weighted Error Value: White=0.23 (precise) /Black=0.26 (precise) .  Mistake:       	White=3     	Black=4      Inaccurate:     	---       	Black=2      OK:         	White=9     	Black=9      Best:        	White=2     	Black=3} 1/2-1/2

[Event "12th Senioren-Cup Tegernsee 2024"]
[Site "Rottach-Egern"]
[Date "2024.04.11"]
[Round "6.7"]
[White "Mueller, Matthias-Michael"]
[Black "Luciani, Carlo"]
[Result "0-1"]
[ECO "A46"]
[WhiteElo "2307"]
[BlackElo "2159"]
[Annotator "TA"]
[PlyCount "98"]
[EventDate "2024.04.02"]
[EventType "swiss"]
[EventCountry "GER"]
[SourceTitle "playchess.com"]
[Source "ChessBase"]
[SourceQuality "1"]
[TimeControl "7800+30"]

{[%evp 11,98,0,0,-27,0,-31,-40,-64,0,-3,0,-6,10,5,0,-9,0,0,0,-78,-40,-81,-93,-98,-80,-104,-91,-105,-102,-114,-110,-113,-104,-129,-120,-122,-47,-43,-16,-21,-12,-31,-40,-47,-46,-131,20,-16,-17,-242,-216,-493,-492,-667,-673,-670,-677,-664,-691,-675,-665,-636,-626,-29986,-29987,-29987,-29988,-29988,-29988,-29988,-29989,-29989,-29990,-29990,-29990,-29995,-29991,-29991,-29992,-29992,-29990,-29990,-29987,-29987,-29988,-29992,-29987,-29988,-29989]} 1. d4 {[%emt 0:00:04]} c5 {[%emt 0:00:12]} 2. c3 {[%emt 0:00:10]} e6 {[%emt 0:00:20]} 3. Nf3 {[%emt 0:00:30]} Nc6 {[%emt 0:01:29]} 4. g3 {[%emt 0:01:40]} Nf6 {[%emt 0:01:54]} 5. Bg2 {[%emt 0:00:11]} Be7 {[%emt 0:02:03]} 6. O-O {[%emt 0:00:34]} O-O {[%emt 0:00:09]} 7. Qd3 {[%emt 0:03:31]} cxd4 {[%emt 0:05:40]} 8. Nxd4 {[%emt 0:00:18]} d5 {[%emt 0:01:20]} 9. Nd2 {[%emt 0:04:12] Black is slightly better.} Bd7 {[%emt 0:07:53]} (9... e5 $15 10. Nxc6 bxc6) 10. e4 $11 {[%emt 0:01:25]} Nxd4 {[%emt 0:10:19]} 11. Qxd4 {[%emt 0:00:30]} Bc6 {[%emt 0:00:49]} 12. e5 {[%emt 0:11:46]} Nd7 {[%emt 0:01:33]} 13. Nb3 {[%emt 0:00:42]} Qc7 {[%emt 0:04:29]} 14. Re1 {[%emt 0:02:50]} a5 {[%emt 0:06:21]} 15. a4 {[%emt 0:03:48]} (15. Qf4 $11) 15... b6 {[%emt 0:01:01]} 16. Bd2 {[%emt 0:10:40]} Nc5 {[%emt 0:05:27]} 17. Nxc5 {[%emt 0:05:14]} bxc5 {[%emt 0:00:20]} 18. Qg4 {[%emt 0:01:47]} Rfb8 {[%emt 0:00:57]} 19. Bh6 {[%emt 0:01:17]} Bf8 {[%emt 0:01:29]} (19... Rxb2 20. Qxg7#) 20. Re2 {[%emt 0:01:00]} Rb3 {[%emt 0:02:13]} 21. h4 {[%emt 0:01:31]} Rab8 {[%emt 0:00:39]} 22. h5 {[%emt 0:01:00][%cal Oh6g7] Bxg7! would now be deadly.} Kh8 {[%emt 0:01:09]} 23. Bc1 {[%emt 0:01:00] [#]} d4 {[%emt 0:10:14]} 24. cxd4 $15 {[%emt 0:02:07][%cal Od4d5]} Bxg2 {[%emt 0:00:29]} 25. Kxg2 {[%emt 0:00:03]} R8b4 {[%emt 0:00:52]} 26. Re4 {[%emt 0:03:58]} Qc6 {[%emt 0:01:40][%csl LRa4,LRd4]} 27. Kg1 {[%emt 0:02:18]} Rd3 $1 {[%emt 0:02:54] Prevents Bd2} (27... Rxa4 $2 28. d5 (28. Rxa4 Qxa4 29. d5 Qd7 $16) 28... Qxd5 (28... Rxa1 $2 29. dxc6 Rb8 30. Qd1 $18) 29. Rexa4 $18 (29. Raxa4 Qa8 $18)) 28. Be3 {[%emt 0:04:54] [#]} (28. Qe2 $15 c4 (28... Rbxd4 29. Rxd4 Rxd4 30. h6 $11) 29. h6) 28... Rxb2 $2 {[%emt 0:01:05] Black is more active.} (28... cxd4 $1 $17 29. Rc1 Qd7 (29... Qxa4 $2 30. Rc8 $18)) 29. Rc1 {[%emt 0:01:43]} (29. h6 $5) 29... c4 {[%emt 0:00:46][%cal Oc6d5] ...Qd5! is the strong threat.} (29... Qxa4 $6 30. dxc5 Qc6 31. Rf4 $16) 30. Bg5 $2 {[%emt 0:30:33] Loses the game.} (30. d5 $1 $11 {and White has nothing to worry.} exd5 (30... Rxd5 31. Rexc4 Qe8 32. Bg5 $16) 31. Rf4) 30... h6 $19 {[%emt 0:07:18]} (30... Qxa4 31. h6 g6 (31... gxh6 32. Bf6+) 32. d5 $18) 31. Re3 $2 {[%emt 0:07:38]} (31. Be3) 31... Rdd2 {[%emt 0:04:09]} (31... hxg5 32. Rxd3 cxd3 33. Rxc6 $16) 32. Rf3 {[%emt 0:05:50]} hxg5 {[%emt 0:00:30]} 33. Rxf7 {[%emt 0:03:23]} Kg8 {[%emt 0:01:01]} 34. Rf3 {[%emt 0:00:21]} Qd5 {[%emt 0:09:00]} (34... Qxa4 35. Qxe6+ (35. Qxg5 $2 Rd3 $19) 35... Kh7 36. Rxf8 (36. Qf5+ Kh8 $18) 36... Rd1+ 37. Kh2) 35. h6 {[%emt 0:01:06]} gxh6 {[%emt 0:00:41][%cal Of8g7] aiming for ...Bg7!} ({Weaker is} 35... Rxd4 36. h7+ Kxh7 37. Qh5+ Kg8 38. Qf7+ Kh7 39. Qh5+ Kg8 40. Qf7+ Kh8 41. Qh5+ Kg8 $11) 36. Rf6 {[%emt 0:00:38]} Bg7 {[%emt 0:01:45]} 37. Rf3 {[%emt 0:01:34]} Rxd4 {[%emt 0:00:43] Black mates.} 38. Qh5 {[%emt 0:00:14]} Rd1+ {[%emt 0:01:47]} 39. Rxd1 {[%emt 0:00:15]} Qxd1+ {[%emt 0:00:17]} 40. Kg2 {[%emt 0:00:09]} Rb1 {[%emt 0:00:26]} ({Not} 40... Bxe5 41. Qe8+ (41. Qxh6 Qd5 $11) (41. Rf8+ Kxf8 42. Qxd1 c3 $11) 41... Kh7 42. Rf7+ Bg7 43. Rxg7+ Kxg7 44. Qe7+ Kg6 45. Qxe6+ Kh7 46. Qf7+ Kh8 47. Qf8+ Kh7 48. Qf7+ Kh8 49. Qe8+ (49. Qf8+ Kh7 $11) 49... Kg7 50. Qe7+ Kg8 51. Qe8+ Kg7 52. Qe7+ Kg8 53. Qe8+ Kg7 $11) 41. Qf7+ {[%emt 0:01:43]} Kh7 {[%emt 0:00:24][%csl Gb1][%cal Rd1h1]} 42. Kh3 {[%emt 0:00:25]} Qe2 {[%emt 0:09:22]} 43. Re3 {[%emt 0:06:08]} Rh1+ {[%emt 0:02:08]} 44. Kg2 {[%emt 0:00:20]} Qf1+ {[%emt 0:00:14]} 45. Kf3 {[%emt 0:00:11]} Rh2 {[%emt 0:01:46]} 46. Re2 {[%emt 0:00:41]} g4+ {[%emt 0:04:55]} 47. Ke3 {[%emt 0:00:10]} Qc1+ {[%emt 0:00:19]} 48. Ke4 {[%emt 0:01:07]} Qb1+ {[%emt 0:00:56]} 49. Kf4 {[%emt 0:01:00]} Qd3 {[%emt 0:00:39] Weighted Error Value: White=0.55/Black=0.11 (very precise) .  Loses game:     	White=1     	---        Mistake:       	White=3     	Black=3      Inaccurate:     	White=4     	Black=3      OK:         	White=10    	Black=9      Best:        	---       	Black=2      Strong:       	---       	Black=1} 0-1

[Event "12th Senioren-Cup Tegernsee 2024"]
[Site "Rottach-Egern"]
[Date "2024.04.11"]
[Round "6.8"]
[White "Lutz, Albert"]
[Black "Schatz, Christian"]
[Result "1/2-1/2"]
[ECO "A05"]
[WhiteElo "2055"]
[BlackElo "2158"]
[Annotator "TA"]
[PlyCount "139"]
[EventDate "2024.04.02"]
[EventType "swiss"]
[EventCountry "GER"]
[SourceTitle "playchess.com"]
[Source "ChessBase"]
[SourceQuality "1"]
[TimeControl "7800+30"]

{[%evp 18,139,-8,-15,-10,-15,-6,-4,-6,-17,-13,-11,-12,-71,-39,-34,-21,-23,-27,-48,-34,-29,-17,0,0,0,14,18,25,2,0,0,5,1,166,172,369,88,88,100,60,90,110,8,12,20,85,77,90,76,72,65,83,81,79,87,87,82,81,75,90,90,166,163,164,173,166,132,244,219,218,162,190,187,195,184,195,101,97,58,48,0,0,0,0,0,0,0,0,0,0,0,0,0,0,0,0,0,0,0,0,0,0,0,0,0,0,0,0,0,0,0,0,0,0,0,0,0,0,0,0,0,0,0]} 1. e4 {[%emt 0:00:10]} c5 {[%emt 0:00:19]} 2. Nf3 {[%emt 0:00:12]} Nc6 {[%emt 0:00:24]} 3. g3 {[%emt 0:00:50]} g6 {[%emt 0:00:41]} 4. Bg2 {[%emt 0:00:11]} Bg7 {[%emt 0:00:07]} 5. O-O {[%emt 0:00:12]} d6 {[%emt 0:00:42]} 6. d3 {[%emt 0:01:04]} Nf6 {[%emt 0:01:41]} 7. c3 {[%emt 0:00:37]} O-O {[%emt 0:00:18]} 8. Nbd2 {[%emt 0:00:40]} Rb8 {[%emt 0:00:44]} 9. Re1 {[%emt 0:05:10]} e5 {[%emt 0:04:28]} 10. a4 {[%emt 0:04:05]} Be6 {[%emt 0:02:35]} 11. Ng5 {[%emt 0:01:51]} Bd7 {[%emt 0:01:20]} 12. Nc4 {[%emt 0:00:35]} h6 {[%emt 0:00:40]} 13. Nf3 {[%emt 0:00:13]} Be6 {[%emt 0:00:53]} 14. b3 {[%emt 0:07:42]} Qc7 {[%emt 0:07:47]} 15. Ra2 {[%emt 0:07:37]} (15. Bd2 $11) 15... Rbd8 {[%emt 0:05:47]} 16. Rae2 {[%emt 0:12:44]} Rfe8 {[%emt 0:17:59]} 17. Bb2 {[%emt 0:00:33]} a6 {[%emt 0:03:04]} 18. d4 {[%emt 0:03:37]} cxd4 {[%emt 0:04:11]} 19. cxd4 {[%emt 0:00:12]} Bxc4 {[%emt 0:00:27]} 20. bxc4 {[%emt 0:00:12]} exd4 {[%emt 0:00:36]} 21. Nxd4 {[%emt 0:00:26]} Nxd4 {[%emt 0:04:01]} 22. Qxd4 {[%emt 0:01:19]} Nh5 {[%emt 0:03:03]} 23. Qd5 {[%emt 0:02:44]} Nf6 {[%emt 0:03:30]} 24. Qd4 {[%emt 0:01:32]} Qa5 {[%emt 0:02:04]} 25. Qd1 {[%emt 0:04:14]} Qb4 $2 {[%emt 0:01:04]} (25... Nd7 $11 {and Black is okay.}) 26. Qa1 $18 {[%emt 0:01:37]} Nh5 $2 {[%emt 0:00:52]} (26... Re6 27. Bh3 Qxc4) 27. Bxg7 $2 {[%emt 0:00:47]} (27. g4 $1 $18 {and the rest is easy.}) 27... Nxg7 $16 {[%emt 0:00:06]} 28. Rb2 {[%emt 0:01:03]} Qxc4 {[%emt 0:01:00]} 29. Rxb7 {[%emt 0:00:15]} Rb8 {[%emt 0:01:27]} 30. Reb1 {[%emt 0:10:36]} (30. Bf1 $16 Qc6 31. Ra7) 30... Rxb7 $11 {[%emt 0:00:44]} 31. Rxb7 {[%emt 0:00:11]} Rc8 {[%emt 0:00:57]} (31... Ne6 $11) 32. a5 $16 {[%emt 0:01:34]} Qc1+ {[%emt 0:01:08]} 33. Qxc1 {[%emt 0:00:59]} Rxc1+ {[%emt 0:00:02]} 34. Bf1 {[%emt 0:00:14]} Ra1 {[%emt 0:01:22]} 35. Rb6 {[%emt 0:00:36]} Rxa5 {[%emt 0:00:17]} 36. Rxd6 {[%emt 0:00:24]} Re5 {[%emt 0:05:34]} 37. Rd8+ {[%emt 0:01:46]} (37. Rxa6 Rxe4 38. Bd3 Re7 $11) 37... Kh7 {[%emt 0:03:36]} 38. f3 {[%emt 0:01:48]} (38. Bxa6 Rxe4 39. Rc8 Re7 $11) 38... a5 {[%emt 0:01:35]} 39. Bc4 {[%emt 0:03:05]} Ne6 {[%emt 0:03:37] [#]} (39... Re7 $16) 40. Rd7 $1 $18 {[%emt 0:00:31]} Kg8 {[%emt 0:02:42] [#]} 41. Bd5 $1 {[%emt 0:01:04]} g5 {[%emt 0:01:03]} 42. Ra7 {[%emt 0:00:41]} Nd8 {[%emt 0:01:56]} (42... Kf8 $16 {was called for.} 43. Kf2 (43. Rxa5 Nc7 $14) 43... Nd8) 43. Kf2 {[%emt 0:02:07]} (43. Rxa5 Re7 44. Kf2 Kg7 $11) 43... Kf8 {[%emt 0:01:14]} 44. Ke3 {[%emt 0:00:23]} Re7 {[%emt 0:01:01]} 45. Rxa5 {[%emt 0:00:15]} Rc7 {[%emt 0:01:13]} 46. Ra8 {[%emt 0:00:35]} Ke7 {[%emt 0:01:35]} 47. Ra2 {[%emt 0:07:33]} ({White should play} 47. f4 $18) 47... Rc3+ $16 {[%emt 0:00:37]} 48. Kd4 {[%emt 0:00:18]} Rxf3 {[%emt 0:01:11]} 49. e5 {[%emt 0:00:38]} (49. Ra7+ $14 {should be considered.} Ke8 50. Ra1) 49... Ne6+ $11 {[%emt 0:00:28]} 50. Ke4 {[%emt 0:02:01]} Rf1 {[%emt 0:04:28]} 51. Ra7+ {[%emt 0:00:23]} Kf8 {[%emt 0:00:40]} 52. Bxe6 {[%emt 0:00:09]} fxe6 {[%emt 0:00:09]} 53. Rh7 {[%emt 0:00:13]} Re1+ {[%emt 0:00:32]} 54. Kd4 {[%emt 0:01:47]} Rd1+ {[%emt 0:00:19]} 55. Kc5 {[%emt 0:00:58]} Rd5+ {[%emt 0:00:16]} 56. Kc6 {[%emt 0:00:08]} Rxe5 {[%emt 0:00:15]} 57. Kd6 {[%emt 0:00:17]} Re2 {[%emt 0:01:07]} 58. Rxh6 {[%emt 0:00:20]} Kg7 {[%emt 0:01:27]} 59. Rh5 {[%emt 0:02:05]} Kf6 {[%emt 0:01:16]} 60. g4 {[%emt 0:03:05]} Rd2+ {[%emt 0:00:17]} 61. Kc5 {[%emt 0:00:02]} Ke5 {[%emt 0:06:47]} 62. Rxg5+ {[%emt 0:01:54]} Kf4 {[%emt 0:00:12]} 63. h4 {[%emt 0:00:11]} Rg2 {[%emt 0:10:35]} 64. Rg8 {[%emt 0:02:27]} Rxg4 {[%emt 0:01:03]} 65. Rxg4+ {[%emt 0:00:12]} Kxg4 {[%emt 0:00:05]} 66. Kd4 {[%emt 0:00:10]} Kf4 {[%emt 0:00:35]} 67. h5 {[%emt 0:00:15]} e5+ {[%emt 0:00:09]} 68. Kd5 {[%emt 0:00:34]} Kg5 {[%emt 0:00:54]} 69. h6 {[%emt 0:00:13]} Kxh6 {[%emt 0:00:06]} 70. Kxe5 {[%emt 0:00:43]} 1/2-1/2